[Event "Betsys MČR v online bleskovém šachu 2021"]
[Site "Chess.com"]
[Date "2021.04.17"]
[Round "10"]
[White "Ehlundi"]
[Black "Millbo64"]
[Result "0-1"]
[WhiteElo "1755"]
[BlackElo "1987"]
[TimeControl "180+1"]
[EndTime "10:41:35 PDT"]
[Termination "Uživatel Millbo64 zvítězil na čas"]

1. e4 {[%clk 0:03:00.9]} 1... c6 {[%clk 0:02:57.8]} 2. Nf3 {[%clk 0:03:00.9]}
2... d5 {[%clk 0:02:57.9]} 3. exd5 {[%clk 0:03:01.6]} 3... cxd5 {[%clk
0:02:58.2]} 4. d4 {[%clk 0:03:02.5]} 4... Nf6 {[%clk 0:02:58.4]} 5. Bd3 {[%clk
0:03:03.1]} 5... Bg4 {[%clk 0:02:58.4]} 6. O-O {[%clk 0:03:03.3]} 6... e6 {[%clk
0:02:58.8]} 7. Bf4 {[%clk 0:03:02.3]} 7... Bd6 {[%clk 0:02:53.8]} 8. Bg3 {[%clk
0:02:59.2]} 8... O-O {[%clk 0:02:53.6]} 9. Nbd2 {[%clk 0:02:58.2]} 9... Nc6
{[%clk 0:02:53]} 10. c3 {[%clk 0:02:58.1]} 10... Qc7 {[%clk 0:02:50.6]} 11. Qc2
{[%clk 0:02:58]} 11... g6 {[%clk 0:02:47.9]} 12. Rfe1 {[%clk 0:02:54]} 12...
Rfe8 {[%clk 0:02:47.1]} 13. Ne5 {[%clk 0:02:42.5]} 13... Bxe5 {[%clk 0:02:39]}
14. Bxe5 {[%clk 0:02:41.2]} 14... Nxe5 {[%clk 0:02:38.4]} 15. dxe5 {[%clk
0:02:40.4]} 15... Nd7 {[%clk 0:02:38.1]} 16. f4 {[%clk 0:02:31.9]} 16... Nc5
{[%clk 0:02:32.9]} 17. Nb3 {[%clk 0:02:19.8]} 17... Nxd3 {[%clk 0:02:17.6]} 18.
Qxd3 {[%clk 0:02:19.1]} 18... Bf5 {[%clk 0:02:16.1]} 19. Qe3 {[%clk 0:02:12.5]}
19... b6 {[%clk 0:02:08.8]} 20. Nd4 {[%clk 0:02:12]} 20... Be4 {[%clk
0:02:07.1]} 21. Qe2 {[%clk 0:01:59.5]} 21... a6 {[%clk 0:02:05.1]} 22. h4 {[%clk
0:01:57.6]} 22... b5 {[%clk 0:02:01.4]} 23. h5 {[%clk 0:01:57.4]} 23... Qc4
{[%clk 0:01:57.8]} 24. Qg4 {[%clk 0:01:53.7]} 24... Kg7 {[%clk 0:01:52]} 25. Qg5
{[%clk 0:01:52.5]} 25... Qc5 {[%clk 0:01:44.9]} 26. Qf6+ {[%clk 0:01:31]} 26...
Kg8 {[%clk 0:01:44.6]} 27. h6 {[%clk 0:01:20.9]} 27... Qf8 {[%clk 0:01:44.2]}
28. Qg5 {[%clk 0:01:20.5]} 28... Qe7 {[%clk 0:01:43.9]} 29. Qg3 {[%clk
0:01:16.1]} 29... f6 {[%clk 0:01:36.6]} 30. Nf3 {[%clk 0:01:11]} 30... Bxf3
{[%clk 0:01:27.7]} 31. Qxf3 {[%clk 0:00:54.5]} 31... Qf8 {[%clk 0:01:27.5]} 32.
Qh3 {[%clk 0:00:50.7]} 32... f5 {[%clk 0:01:26]} 33. Re3 {[%clk 0:00:45.1]}
33... Rac8 {[%clk 0:01:25.8]} 34. Rg3 {[%clk 0:00:44.5]} 34... Rc4 {[%clk
0:01:24.5]} 35. Qh4 {[%clk 0:00:42.2]} 35... Qe7 {[%clk 0:01:23.2]} 36. Qxe7
{[%clk 0:00:37.4]} 36... Rxe7 {[%clk 0:01:23]} 37. Rf3 {[%clk 0:00:37.3]} 37...
Rec7 {[%clk 0:01:18]} 38. a3 {[%clk 0:00:34.6]} 38... d4 {[%clk 0:01:12.7]} 39.
Rc1 {[%clk 0:00:27.5]} 39... a5 {[%clk 0:01:06.8]} 40. Kf2 {[%clk 0:00:26.5]}
40... b4 {[%clk 0:01:05.8]} 41. axb4 {[%clk 0:00:26.2]} 41... axb4 {[%clk
0:01:06]} 42. Ke2 {[%clk 0:00:19.8]} 42... dxc3 {[%clk 0:01:04.3]} 43. bxc3
{[%clk 0:00:19.7]} 43... bxc3 {[%clk 0:00:48.3]} 44. Kd3 {[%clk 0:00:18.2]}
44... c2 {[%clk 0:00:42.2]} 45. Rf2 {[%clk 0:00:17.2]} 45... Rc3+ {[%clk
0:00:42.4]} 46. Kd2 {[%clk 0:00:16.4]} 46... R7c4 {[%clk 0:00:39.6]} 47. Ke2
{[%clk 0:00:09.6]} 47... Kf7 {[%clk 0:00:39.3]} 48. Kd2 {[%clk 0:00:08.3]} 48...
g5 {[%clk 0:00:36.6]} 49. Rf3 {[%clk 0:00:06.1]} 49... Rxf3 {[%clk 0:00:32.5]}
50. gxf3 {[%clk 0:00:05.8]} 50... Rxf4 {[%clk 0:00:29.4]} 51. Ke3 {[%clk
0:00:05.8]} 51... Rc4 {[%clk 0:00:28.2]} 52. Kd3 {[%clk 0:00:05.1]} 52... Rc8
{[%clk 0:00:27.7]} 53. Ke3 {[%clk 0:00:05.1]} 53... Kg6 {[%clk 0:00:27.8]} 54.
f4 {[%clk 0:00:03.4]} 54... g4 {[%clk 0:00:27.4]} 55. Kf2 {[%clk 0:00:01.3]}
55... Kxh6 {[%clk 0:00:27.4]} 56. Kg3 {[%clk 0:00:02]} 56... Kg6 {[%clk
0:00:27.7]} 57. Kf2 {[%clk 0:00:02.1]} 57... h5 {[%clk 0:00:27.5]} 58. Kg3
{[%clk 0:00:02.5]} 58... Rc3+ {[%clk 0:00:27.3]} 59. Kf2 {[%clk 0:00:01.7]}
59... h4 {[%clk 0:00:27.6]} 60. Kg2 {[%clk 0:00:01.9]} 60... h3+ {[%clk
0:00:27.4]} 61. Kh2 {[%clk 0:00:01.6]} 61... Kh5 {[%clk 0:00:27.6]} 0-1

[Event "Betsys MČR v online bleskovém šachu 2021"]
[Site "Chess.com"]
[Date "2021.04.17"]
[Round "10"]
[White "Petulak08"]
[Black "sachistamartin"]
[Result "0-1"]
[WhiteElo "1170"]
[BlackElo "1434"]
[TimeControl "180+1"]
[EndTime "10:41:36 PDT"]
[Termination "Uživatel sachistamartin zvítězil na čas"]

1. d4 {[%clk 0:03:00.9]} 1... d5 {[%clk 0:02:59.6]} 2. c4 {[%clk 0:03:00.7]}
2... Nf6 {[%clk 0:02:59.2]} 3. Nf3 {[%clk 0:03:00.1]} 3... Nc6 {[%clk
0:02:57.7]} 4. Nc3 {[%clk 0:02:55.5]} 4... e6 {[%clk 0:02:54.6]} 5. Bf4 {[%clk
0:02:51.9]} 5... a6 {[%clk 0:02:51.7]} 6. Qb3 {[%clk 0:02:47]} 6... Na5 {[%clk
0:02:46.7]} 7. Qa4+ {[%clk 0:02:41.1]} 7... c6 {[%clk 0:02:44.7]} 8. cxd5 {[%clk
0:02:40.2]} 8... exd5 {[%clk 0:02:41.6]} 9. e3 {[%clk 0:02:31]} 9... Bd7 {[%clk
0:02:38.3]} 10. b4 {[%clk 0:02:26.3]} 10... Nc4 {[%clk 0:02:33.8]} 11. Bxc4
{[%clk 0:02:25.3]} 11... dxc4 {[%clk 0:02:32.4]} 12. Ne5 {[%clk 0:02:22.3]}
12... Be7 {[%clk 0:02:23.6]} 13. Nxd7 {[%clk 0:02:06.4]} 13... Qxd7 {[%clk
0:02:16.7]} 14. Rb1 {[%clk 0:01:54.4]} 14... b5 {[%clk 0:02:16.1]} 15. Qa3
{[%clk 0:01:42.7]} 15... a5 {[%clk 0:02:11.6]} 16. O-O {[%clk 0:01:31.1]} 16...
axb4 {[%clk 0:02:09.3]} 17. Qxa8+ {[%clk 0:01:30.4]} 17... Bd8 {[%clk
0:02:08.2]} 18. Rxb4 {[%clk 0:01:21.8]} 18... O-O {[%clk 0:02:07]} 19. Qa6
{[%clk 0:01:12.9]} 19... Be7 {[%clk 0:02:04.3]} 20. Rb2 {[%clk 0:00:49.9]} 20...
b4 {[%clk 0:01:54.7]} 21. Na4 {[%clk 0:00:42.8]} 21... c3 {[%clk 0:01:50.2]} 22.
Rc2 {[%clk 0:00:40.3]} 22... Ne4 {[%clk 0:01:42]} 23. f3 {[%clk 0:00:34.9]}
23... Nd2 {[%clk 0:01:40.2]} 24. Rd1 {[%clk 0:00:30]} 24... Nc4 {[%clk 0:01:39]}
25. Qxc4 {[%clk 0:00:26.6]} 25... Qf5 {[%clk 0:01:34.1]} 26. Qd3 {[%clk
0:00:24.7]} 26... Qa5 {[%clk 0:01:31.4]} 27. Nc5 {[%clk 0:00:19.4]} 27... Rd8
{[%clk 0:01:25.5]} 28. Qc4 {[%clk 0:00:17.3]} 28... g5 {[%clk 0:01:18.7]} 29.
Bg3 {[%clk 0:00:15.9]} 29... Bxc5 {[%clk 0:01:13.2]} 30. Qxc5 {[%clk 0:00:14]}
30... Qxc5 {[%clk 0:01:12.6]} 31. dxc5 {[%clk 0:00:14.4]} 31... Rxd1+ {[%clk
0:01:12.2]} 32. Kf2 {[%clk 0:00:14.6]} 32... Kg7 {[%clk 0:01:05.9]} 33. Ke2
{[%clk 0:00:13.6]} 33... Rg1 {[%clk 0:01:03.8]} 34. Kf2 {[%clk 0:00:12.1]} 34...
Rb1 {[%clk 0:01:00.7]} 35. Ke2 {[%clk 0:00:09.7]} 35... Rb2 {[%clk 0:01:00.3]}
36. Rxb2 {[%clk 0:00:07.1]} 36... cxb2 {[%clk 0:00:59.9]} 37. Be5+ {[%clk
0:00:07.3]} 37... Kg6 {[%clk 0:00:57]} 38. Bxb2 {[%clk 0:00:07.5]} 38... h5
{[%clk 0:00:55.6]} 39. Kd3 {[%clk 0:00:07.7]} 39... f5 {[%clk 0:00:55]} 40. Kc4
{[%clk 0:00:07.7]} 40... g4 {[%clk 0:00:52.5]} 41. f4 {[%clk 0:00:06.9]} 41...
h4 {[%clk 0:00:50.7]} 42. g3 {[%clk 0:00:07]} 42... hxg3 {[%clk 0:00:49.4]} 43.
hxg3 {[%clk 0:00:07.2]} 43... Kf7 {[%clk 0:00:50.3]} 44. Kxb4 {[%clk 0:00:07.4]}
44... Ke6 {[%clk 0:00:49.8]} 45. Bd4 {[%clk 0:00:05.1]} 45... Kd5 {[%clk
0:00:49.6]} 46. Ka5 {[%clk 0:00:04.4]} 46... Kc4 {[%clk 0:00:49]} 47. a4 {[%clk
0:00:03.4]} 47... Kb3 {[%clk 0:00:47.1]} 48. Kb6 {[%clk 0:00:03.7]} 48... Kxa4
{[%clk 0:00:46.9]} 49. Kxc6 {[%clk 0:00:04.4]} 49... Ka5 {[%clk 0:00:47.6]} 50.
Kd7 {[%clk 0:00:04.1]} 50... Ka6 {[%clk 0:00:46.8]} 51. c6 {[%clk 0:00:04.7]}
51... Kb5 {[%clk 0:00:46.1]} 52. c7 {[%clk 0:00:05.5]} 52... Kc4 {[%clk
0:00:47]} 53. c8=Q+ {[%clk 0:00:05.3]} 53... Kd3 {[%clk 0:00:47.9]} 54. Qc3+
{[%clk 0:00:05.4]} 54... Ke2 {[%clk 0:00:48.8]} 55. Qc2+ {[%clk 0:00:05.2]}
55... Kf3 {[%clk 0:00:49.7]} 56. Kd6 {[%clk 0:00:05.5]} 56... Kxg3 {[%clk
0:00:38.1]} 57. Ke5 {[%clk 0:00:04.9]} 57... Kf3 {[%clk 0:00:36.3]} 58. Kxf5
{[%clk 0:00:04.8]} 58... g3 {[%clk 0:00:34.9]} 59. Qd1+ {[%clk 0:00:03.9]} 59...
Kf2 {[%clk 0:00:34.2]} 60. e4+ {[%clk 0:00:03.3]} 60... Kg2 {[%clk 0:00:32.4]}
61. Qg1+ {[%clk 0:00:01.3]} 61... Kh3 {[%clk 0:00:33.3]} 0-1

[Event "Betsys MČR v online bleskovém šachu 2021"]
[Site "Chess.com"]
[Date "2021.04.17"]
[Round "10"]
[White "Federer302"]
[Black "Dale00007"]
[Result "1-0"]
[WhiteElo "1586"]
[BlackElo "1393"]
[TimeControl "180+1"]
[EndTime "10:41:39 PDT"]
[Termination "Uživatel Federer302 zvítězil na čas"]

1. e4 {[%clk 0:03:00.9]} 1... c5 {[%clk 0:02:59.5]} 2. Nf3 {[%clk 0:03:00.2]}
2... d6 {[%clk 0:02:57.7]} 3. d4 {[%clk 0:02:59]} 3... cxd4 {[%clk 0:02:57.4]}
4. Nxd4 {[%clk 0:02:59]} 4... Nf6 {[%clk 0:02:57.4]} 5. Nc3 {[%clk 0:02:58.6]}
5... a6 {[%clk 0:02:55.6]} 6. a3 {[%clk 0:02:57.4]} 6... b5 {[%clk 0:02:49.3]}
7. f3 {[%clk 0:02:53.4]} 7... e6 {[%clk 0:02:42.5]} 8. Bg5 {[%clk 0:02:49.5]}
8... Be7 {[%clk 0:02:39.4]} 9. Be2 {[%clk 0:02:46.1]} 9... O-O {[%clk
0:02:33.3]} 10. O-O {[%clk 0:02:44.4]} 10... Qc7 {[%clk 0:02:21.7]} 11. Qd2
{[%clk 0:02:38.8]} 11... Re8 {[%clk 0:02:20.7]} 12. Rad1 {[%clk 0:02:31.2]}
12... Nc6 {[%clk 0:02:18.9]} 13. Bxf6 {[%clk 0:02:02.1]} 13... Bxf6 {[%clk
0:02:13.3]} 14. Nxc6 {[%clk 0:02:01.1]} 14... Qxc6 {[%clk 0:01:58.9]} 15. Qxd6
{[%clk 0:01:59.8]} 15... Qxd6 {[%clk 0:01:35.2]} 16. Rxd6 {[%clk 0:01:59.2]}
16... Bxc3 {[%clk 0:01:28.2]} 17. bxc3 {[%clk 0:01:58.8]} 17... Bb7 {[%clk
0:01:28.1]} 18. Rfd1 {[%clk 0:01:54]} 18... Rac8 {[%clk 0:01:13]} 19. Rd7 {[%clk
0:01:37.6]} 19... Ba8 {[%clk 0:00:49.1]} 20. Ra7 {[%clk 0:01:23.1]} 20... Rxc3
{[%clk 0:00:47.2]} 21. Rdd7 {[%clk 0:00:57.4]} 21... Rxc2 {[%clk 0:00:42.7]} 22.
Bd3 {[%clk 0:00:52.3]} 22... Rc1+ {[%clk 0:00:34.6]} 23. Kf2 {[%clk 0:00:52]}
23... Rec8 {[%clk 0:00:32.8]} 24. Rxf7 {[%clk 0:00:43.8]} 24... R1c3 {[%clk
0:00:26.6]} 25. Rxg7+ {[%clk 0:00:37.5]} 25... Kf8 {[%clk 0:00:25.8]} 26. Rxh7
{[%clk 0:00:30.9]} 26... Kg8 {[%clk 0:00:24.7]} 27. Ke2 {[%clk 0:00:25.9]} 27...
Rxa3 {[%clk 0:00:22.6]} 28. Rag7+ {[%clk 0:00:21.7]} 28... Kf8 {[%clk 0:00:22]}
29. Rh8+ {[%clk 0:00:17.3]} 29... Kxg7 {[%clk 0:00:21]} 30. Rxc8 {[%clk
0:00:18.2]} 30... Ra2+ {[%clk 0:00:20.6]} 31. Ke3 {[%clk 0:00:17.9]} 31... Kf6
{[%clk 0:00:20.5]} 32. Rxa8 {[%clk 0:00:17.8]} 32... Rxg2 {[%clk 0:00:19.8]} 33.
Rxa6 {[%clk 0:00:16.8]} 33... Rxh2 {[%clk 0:00:19.3]} 34. Bxb5 {[%clk
0:00:16.9]} 34... Rb2 {[%clk 0:00:15.7]} 35. Bc4 {[%clk 0:00:16.9]} 35... Ke7
{[%clk 0:00:12.2]} 36. Rxe6+ {[%clk 0:00:16.8]} 36... Kd7 {[%clk 0:00:11.5]} 37.
Bd5 {[%clk 0:00:16.7]} 37... Rc2 {[%clk 0:00:07.8]} 38. Kf4 {[%clk 0:00:15.8]}
38... Rc3 {[%clk 0:00:07.3]} 39. Ke5 {[%clk 0:00:15.2]} 39... Kc7 {[%clk
0:00:07]} 40. f4 {[%clk 0:00:14.7]} 40... Rc5 {[%clk 0:00:05.9]} 41. f5 {[%clk
0:00:14.6]} 41... Kd7 {[%clk 0:00:04.7]} 42. f6 {[%clk 0:00:14.4]} 42... Rc2
{[%clk 0:00:03.8]} 43. f7 {[%clk 0:00:13.6]} 43... Rf2 {[%clk 0:00:03.7]} 44.
Rf6 {[%clk 0:00:13.5]} 44... Rxf6 {[%clk 0:00:02.9]} 45. Kxf6 {[%clk 0:00:13.1]}
45... Kd8 {[%clk 0:00:02.8]} 46. f8=Q+ {[%clk 0:00:13]} 46... Kd7 {[%clk
0:00:02.3]} 47. Qe7+ {[%clk 0:00:11.3]} 47... Kc8 {[%clk 0:00:02]} 48. Ke6
{[%clk 0:00:10.8]} 48... Kb8 {[%clk 0:00:01.4]} 49. Kd6 {[%clk 0:00:10.6]} 1-0

[Event "Betsys MČR v online bleskovém šachu 2021"]
[Site "Chess.com"]
[Date "2021.04.17"]
[Round "10"]
[White "feela1"]
[Black "tondapesek"]
[Result "1/2-1/2"]
[WhiteElo "1337"]
[BlackElo "1133"]
[TimeControl "180+1"]
[EndTime "10:41:40 PDT"]
[Termination "Remíza opakováním pozice"]

1. e4 {[%clk 0:03:00.9]} 1... e5 {[%clk 0:02:59.8]} 2. Nf3 {[%clk 0:02:59.7]}
2... Nc6 {[%clk 0:02:59.9]} 3. Bc4 {[%clk 0:02:58.5]} 3... Bc5 {[%clk 0:02:59]}
4. Nc3 {[%clk 0:02:55.8]} 4... Nf6 {[%clk 0:02:58.5]} 5. d3 {[%clk 0:02:55.5]}
5... h6 {[%clk 0:02:57.6]} 6. Qe2 {[%clk 0:02:53.6]} 6... d6 {[%clk 0:02:57.2]}
7. h3 {[%clk 0:02:52.4]} 7... O-O {[%clk 0:02:56.1]} 8. Be3 {[%clk 0:02:50.7]}
8... Nd4 {[%clk 0:02:46.1]} 9. Bxd4 {[%clk 0:02:37]} 9... exd4 {[%clk
0:02:42.9]} 10. Nd5 {[%clk 0:02:29.3]} 10... Nxd5 {[%clk 0:02:41.3]} 11. Bxd5
{[%clk 0:02:28.6]} 11... c6 {[%clk 0:02:40.8]} 12. Bb3 {[%clk 0:02:27.1]} 12...
Bb4+ {[%clk 0:02:37.2]} 13. Nd2 {[%clk 0:02:22.3]} 13... Bxd2+ {[%clk
0:02:35.5]} 14. Qxd2 {[%clk 0:02:21.5]} 14... c5 {[%clk 0:02:34.2]} 15. O-O
{[%clk 0:02:20.5]} 15... Be6 {[%clk 0:02:32.3]} 16. Bxe6 {[%clk 0:02:11.8]}
16... fxe6 {[%clk 0:02:31.8]} 17. b3 {[%clk 0:02:10.4]} 17... b6 {[%clk
0:02:31.4]} 18. a4 {[%clk 0:02:08.9]} 18... a5 {[%clk 0:02:30.4]} 19. Rae1
{[%clk 0:02:03.9]} 19... e5 {[%clk 0:02:29.9]} 20. f4 {[%clk 0:02:01.3]} 20...
exf4 {[%clk 0:02:25.6]} 21. Rxf4 {[%clk 0:02:00.8]} 21... Rxf4 {[%clk
0:02:24.9]} 22. Qxf4 {[%clk 0:01:59.9]} 22... Qf6 {[%clk 0:02:24.5]} 23. Rf1
{[%clk 0:01:58]} 23... Qxf4 {[%clk 0:02:23.5]} 24. Rxf4 {[%clk 0:01:56.7]} 24...
Rf8 {[%clk 0:02:23.1]} 25. Rxf8+ {[%clk 0:01:53.1]} 25... Kxf8 {[%clk
0:02:23.1]} 26. Kf2 {[%clk 0:01:52.7]} 26... Kf7 {[%clk 0:02:22.2]} 27. Kf3
{[%clk 0:01:52.8]} 27... Kf6 {[%clk 0:02:21.5]} 28. g3 {[%clk 0:01:48]} 28... g6
{[%clk 0:02:18.8]} 29. h4 {[%clk 0:01:47.5]} 29... Ke5 {[%clk 0:02:17]} 30. g4
{[%clk 0:01:45.7]} 30... Ke6 {[%clk 0:02:15.9]} 31. Kf4 {[%clk 0:01:42.3]} 31...
Kf6 {[%clk 0:02:03.7]} 32. Kf3 {[%clk 0:01:26.3]} 32... g5 {[%clk 0:01:52.2]}
33. hxg5+ {[%clk 0:01:18.5]} 33... hxg5 {[%clk 0:01:50.3]} 34. Kg3 {[%clk
0:01:17.9]} 34... Ke5 {[%clk 0:01:46.9]} 35. Kf3 {[%clk 0:01:17.3]} 35... Ke6
{[%clk 0:01:40.1]} 36. Kg3 {[%clk 0:01:12.4]} 36... Kd7 {[%clk 0:01:39.6]} 37.
Kf3 {[%clk 0:01:11.6]} 37... Kc6 {[%clk 0:01:39.5]} 38. Kg3 {[%clk 0:01:11]}
38... b5 {[%clk 0:01:39.5]} 39. axb5+ {[%clk 0:01:07.5]} 39... Kxb5 {[%clk
0:01:38.3]} 40. Kf3 {[%clk 0:01:06.7]} 40... Kb4 {[%clk 0:01:38.2]} 41. e5
{[%clk 0:01:05.9]} 41... dxe5 {[%clk 0:01:37.5]} 42. Ke4 {[%clk 0:01:05.4]}
42... Kc3 {[%clk 0:01:37.5]} 43. Kf5 {[%clk 0:01:02.7]} 43... Kxc2 {[%clk
0:01:37.2]} 44. Kxg5 {[%clk 0:01:01.7]} 44... Kxb3 {[%clk 0:01:36.5]} 45. Kf5
{[%clk 0:01:01.5]} 45... a4 {[%clk 0:01:36.3]} 46. g5 {[%clk 0:01:01.4]} 46...
a3 {[%clk 0:01:36.5]} 47. g6 {[%clk 0:01:01.3]} 47... a2 {[%clk 0:01:37]} 48. g7
{[%clk 0:01:01]} 48... a1=Q {[%clk 0:01:37.1]} 49. g8=Q+ {[%clk 0:00:59.3]}
49... Kc3 {[%clk 0:01:37]} 50. Qc4+ {[%clk 0:00:55.5]} 50... Kd2 {[%clk
0:01:34.2]} 51. Kxe5 {[%clk 0:00:50.2]} 51... Qe1+ {[%clk 0:01:31.7]} 52. Kd5
{[%clk 0:00:47.1]} 52... Qh1+ {[%clk 0:01:30]} 53. Kxc5 {[%clk 0:00:46.2]} 53...
Qh5+ {[%clk 0:00:59.9]} 54. Kb4 {[%clk 0:00:40.3]} 54... Qe5 {[%clk 0:00:46.4]}
55. Qc2+ {[%clk 0:00:38]} 55... Ke3 {[%clk 0:00:44.5]} 56. Qe2+ {[%clk 0:00:37]}
56... Kf4 {[%clk 0:00:44.3]} 57. Qh2+ {[%clk 0:00:30.3]} 57... Kf5 {[%clk
0:00:40.7]} 58. Qxe5+ {[%clk 0:00:27.3]} 58... Kxe5 {[%clk 0:00:40.9]} 59. Kc4
{[%clk 0:00:27.3]} 59... Ke6 {[%clk 0:00:39.7]} 60. Kxd4 {[%clk 0:00:27]} 60...
Kd6 {[%clk 0:00:39.7]} 61. Ke4 {[%clk 0:00:24.2]} 61... Ke6 {[%clk 0:00:39.9]}
62. d4 {[%clk 0:00:20.4]} 62... Kd6 {[%clk 0:00:38]} 63. d5 {[%clk 0:00:19.3]}
63... Kd7 {[%clk 0:00:38]} 64. Ke5 {[%clk 0:00:19.3]} 64... Ke7 {[%clk
0:00:37.7]} 65. d6+ {[%clk 0:00:19.4]} 65... Kd8 {[%clk 0:00:36.8]} 66. Kd5
{[%clk 0:00:17.5]} 66... Kd7 {[%clk 0:00:36.7]} 67. Ke5 {[%clk 0:00:17.3]} 67...
Kd8 {[%clk 0:00:36.3]} 68. Ke6 {[%clk 0:00:14.8]} 68... Ke8 {[%clk 0:00:34.8]}
69. Kd5 {[%clk 0:00:14.6]} 69... Kd7 {[%clk 0:00:35.1]} 70. Ke5 {[%clk
0:00:14.4]} 70... Kd8 {[%clk 0:00:35.4]} 1/2-1/2

[Event "Betsys MČR v online bleskovém šachu 2021"]
[Site "Chess.com"]
[Date "2021.04.17"]
[Round "10"]
[White "Trickov"]
[Black "MilosJi"]
[Result "1-0"]
[WhiteElo "2416"]
[BlackElo "2561"]
[TimeControl "180+1"]
[EndTime "10:41:42 PDT"]
[Termination "Uživatel Trickov zvítězil na čas"]

1. d4 {[%clk 0:03:00.9]} 1... d5 {[%clk 0:02:59.9]} 2. Nf3 {[%clk 0:03:00.3]}
2... c6 {[%clk 0:02:59.7]} 3. c4 {[%clk 0:02:58.1]} 3... dxc4 {[%clk 0:02:54.2]}
4. e3 {[%clk 0:02:52]} 4... Be6 {[%clk 0:02:54]} 5. Nbd2 {[%clk 0:02:41.5]} 5...
Nf6 {[%clk 0:02:44.2]} 6. Bxc4 {[%clk 0:02:36.1]} 6... Bxc4 {[%clk 0:02:43.7]}
7. Nxc4 {[%clk 0:02:35.3]} 7... e6 {[%clk 0:02:42.6]} 8. O-O {[%clk 0:02:31.8]}
8... Be7 {[%clk 0:02:42.1]} 9. Qc2 {[%clk 0:02:23.6]} 9... O-O {[%clk
0:02:38.5]} 10. e4 {[%clk 0:02:18.1]} 10... Nbd7 {[%clk 0:02:37.7]} 11. Rd1
{[%clk 0:02:12.1]} 11... Nb6 {[%clk 0:02:35.7]} 12. b3 {[%clk 0:02:06.7]} 12...
Rc8 {[%clk 0:02:28.5]} 13. Bf4 {[%clk 0:02:01.5]} 13... h6 {[%clk 0:02:15.3]}
14. Na5 {[%clk 0:01:52.2]} 14... Rb8 {[%clk 0:01:50.1]} 15. Bxb8 {[%clk
0:01:46.7]} 15... Qxb8 {[%clk 0:01:51]} 16. g3 {[%clk 0:01:40.1]} 16... Rd8
{[%clk 0:01:45.5]} 17. Nc4 {[%clk 0:01:38.6]} 17... Nbd7 {[%clk 0:01:41.2]} 18.
Rac1 {[%clk 0:01:32.2]} 18... Bb4 {[%clk 0:01:37.8]} 19. a3 {[%clk 0:01:27.5]}
19... Bf8 {[%clk 0:01:37]} 20. b4 {[%clk 0:01:22.9]} 20... a6 {[%clk 0:01:32.8]}
21. Kg2 {[%clk 0:01:13.6]} 21... Ne8 {[%clk 0:01:26.5]} 22. Ne3 {[%clk
0:01:06.7]} 22... Nc7 {[%clk 0:01:25.6]} 23. h4 {[%clk 0:00:59.2]} 23... Nb5
{[%clk 0:01:25.2]} 24. a4 {[%clk 0:00:53.5]} 24... Nd6 {[%clk 0:01:23.4]} 25.
Rb1 {[%clk 0:00:47.2]} 25... Rc8 {[%clk 0:01:17.5]} 26. Qd3 {[%clk 0:00:42.6]}
26... Nb6 {[%clk 0:01:15.2]} 27. Ra1 {[%clk 0:00:32.7]} 27... Rd8 {[%clk
0:01:12.9]} 28. Rdb1 {[%clk 0:00:32]} 28... Nd7 {[%clk 0:00:58.3]} 29. Qc2
{[%clk 0:00:31.3]} 29... Rc8 {[%clk 0:00:51.2]} 30. Nc4 {[%clk 0:00:31.1]} 30...
Ne8 {[%clk 0:00:47.6]} 31. Nfe5 {[%clk 0:00:25.1]} 31... Ndf6 {[%clk 0:00:42.6]}
32. Qd3 {[%clk 0:00:19]} 32... Rd8 {[%clk 0:00:41.3]} 33. Nf3 {[%clk 0:00:14.6]}
33... Nc7 {[%clk 0:00:38.4]} 34. Nce5 {[%clk 0:00:12.4]} 34... Nce8 {[%clk
0:00:36.8]} 35. Qe2 {[%clk 0:00:12.4]} 35... Nd6 {[%clk 0:00:36.3]} 36. Nd2
{[%clk 0:00:10.8]} 36... Nde8 {[%clk 0:00:35.8]} 37. Nb3 {[%clk 0:00:09.8]}
37... Nd6 {[%clk 0:00:35.2]} 38. f3 {[%clk 0:00:09.8]} 38... Nd7 {[%clk
0:00:31.6]} 39. Nc4 {[%clk 0:00:09.3]} 39... Ne8 {[%clk 0:00:29.5]} 40. b5
{[%clk 0:00:09.5]} 40... axb5 {[%clk 0:00:28]} 41. axb5 {[%clk 0:00:09.7]} 41...
c5 {[%clk 0:00:25]} 42. dxc5 {[%clk 0:00:09.2]} 42... Nxc5 {[%clk 0:00:25.3]}
43. Nxc5 {[%clk 0:00:08.7]} 43... Bxc5 {[%clk 0:00:25.5]} 44. Rd1 {[%clk
0:00:08.8]} 44... Rc8 {[%clk 0:00:24.7]} 45. Rac1 {[%clk 0:00:08.9]} 45... Nf6
{[%clk 0:00:24.6]} 46. e5 {[%clk 0:00:08.7]} 46... Nd5 {[%clk 0:00:24.1]} 47. f4
{[%clk 0:00:08.9]} 47... Qa7 {[%clk 0:00:23]} 48. Kh3 {[%clk 0:00:09]} 48... Qa4
{[%clk 0:00:21.5]} 49. Nd6 {[%clk 0:00:08.8]} 49... Rc7 {[%clk 0:00:20.7]} 50.
Ne4 {[%clk 0:00:08.5]} 50... b6 {[%clk 0:00:18.4]} 51. Nxc5 {[%clk 0:00:08.6]}
51... bxc5 {[%clk 0:00:18.7]} 52. Ra1 {[%clk 0:00:08.3]} 52... Qb3 {[%clk
0:00:16.9]} 53. Ra8+ {[%clk 0:00:07.9]} 53... Kh7 {[%clk 0:00:16.2]} 54. Qe4+
{[%clk 0:00:08]} 54... g6 {[%clk 0:00:15.9]} 55. Rb1 {[%clk 0:00:08.1]} 55...
Qc3 {[%clk 0:00:07.2]} 56. b6 {[%clk 0:00:08.3]} 56... Rb7 {[%clk 0:00:07.1]}
57. Ra7 {[%clk 0:00:08.1]} 1-0